fUSD/lending_fUSD_20241216
["ID","MTS","AMOUNT","RATE_DAILY","PERIOD"]
[345606043,1734378661966,-500.0,0.00024998,4]
[345606044,1734378661976,-500.0,0.00024998,4]
[345606046,1734378661986,-500.0,0.00024998,4]
[345606049,1734378661996,-500.0,0.00024998,4]
[345606050,1734378662010,-500.0,0.00024998,4]
[345606052,1734378662018,-500.0,0.00024998,4]
[345606054,1734378662027,-500.0,0.00024998,4]
[345606056,1734378662037,-500.0,0.00024998,4]
[345606058,1734378662046,-500.0,0.00024998,4]
[345606060,1734378662056,-2683.66,0.00024998,4]
[345606062,1734378662066,-2683.66,0.00024998,4]
[345606063,1734378662076,-500.0,0.00024998,4]
[345606064,1734378662087,-229.54190755,0.00024998,4]
[345606065,1734378662097,-500.0,0.00024998,4]
[345606066,1734378662107,-500.0,0.00024998,4]
[345606067,1734378662117,-500.0,0.00024998,4]
[345606068,1734378662127,-500.0,0.00024998,4]
[345606069,1734378662136,-1564.13,0.00024998,4]
[345606070,1734378662146,-1564.13,0.00024998,4]
[345606071,1734378662156,-507.21556616,0.00024998,4]
[345606072,1734378662166,-500.0,0.00024998,4]
[345606073,1734378662175,-500.0,0.00024998,4]
[345606075,1734378662185,-500.0,0.00024998,4]
[345606077,1734378662194,-500.0,0.00024998,4]
[345606080,1734378662204,-724.56,0.00024998,4]
[345606081,1734378662214,-724.56,0.00024998,4]
[345606083,1734378662224,-724.56,0.00024998,4]
[345606085,1734378662233,-724.56,0.00024998,4]
[345606087,1734378662243,-724.56,0.00024998,4]
[345606089,1734378662252,-724.73603016,0.00024998,4]
[345606091,1734378662262,-2694.59,0.00024998,4]
[345606093,1734378662271,-2694.59,0.00024998,4]
[345606095,1734378662280,-2694.59,0.00024998,4]
[345606097,1734378662290,-761.05,0.00024998,4]
[345606099,1734378662300,-500.0,0.00024998,4]
[345606101,1734378662310,-500.0,0.00024998,4]
[345606103,1734378662319,-761.05,0.00024998,4]
[345606105,1734378662330,-152.449149,0.00024998,4]
[345606107,1734378662340,-152.449149,0.00024998,4]
[345606109,1734378662350,-335.4,0.00024998,4]
[345606111,1734378662360,-773.82,0.00024998,4]
[345606113,1734378662370,-773.82,0.00024998,4]
[345606115,1734378662380,-773.82,0.00024998,4]
[345606117,1734378662390,-500.0,0.00024998,4]
[345606120,1734378662400,-500.0,0.00024998,4]
[345606121,1734378662410,-500.0,0.00024998,4]
[345606123,1734378662420,-612.02,0.00024998,4]
[345606125,1734378662430,-500.0,0.00024998,4]
[345606127,1734378662440,-500.0,0.00024998,4]
[345606129,1734378662449,-716.28,0.00024998,4]
[345606131,1734378662459,-716.28,0.00024998,4]
[345606133,1734378662470,-500.0,0.00024998,4]
[345606136,1734378662480,-500.0,0.00024998,4]
[345606138,1734378662490,-177.08456082,0.00024998,4]
[345606140,1734378662499,-947.97,0.00024998,4]
[345606142,1734378662511,-947.97,0.00024998,4]
[345606143,1734378662520,-527.12,0.00024998,4]
[345606145,1734378662531,-527.12,0.00024998,4]
[345606147,1734378662542,-2942.99,0.00024998,4]
[345606149,1734378662552,-2942.99,0.00024998,4]
[345606151,1734378662561,-835.01,0.00024998,4]
[345606153,1734378662571,-835.01,0.00024998,4]
[345606156,1734378662583,-2226.46,0.00024998,4]
[345606158,1734378662593,-2226.46,0.00024998,4]
[345606160,1734378662603,-1086.98,0.00024998,4]
[345606161,1734378662613,-1086.98,0.00024998,4]
[345606163,1734378662623,-1086.98,0.00024998,4]
[345606165,1734378662632,-4201.29,0.00024998,4]
[345606168,1734378662642,-4201.29,0.00024998,4]
[345606169,1734378662652,-500.0,0.00024998,4]
[345606171,1734378662663,-500.0,0.00024998,4]
[345606173,1734378662673,-686.95,0.00024998,4]
[345606175,1734378662683,-686.95,0.00024998,4]
[345606177,1734378662692,-500.0,0.00024998,4]
[345606179,1734378662702,-10224.46,0.00024998,4]
[345606181,1734378662712,-10224.46,0.00024998,4]
[345606183,1734378662721,-682.78,0.00024998,4]
[345606185,1734378662731,-682.78,0.00024998,4]
[345606187,1734378662740,-300.0,0.00024999,10]
[345606189,1734378662750,-300.0,0.00024999,10]
[345606191,1734378662759,-300.0,0.00024999,10]
[345606193,1734378662768,-2000.0,0.00024999,2]
[345606195,1734378662778,-2000.0,0.00024999,2]
[345606197,1734378662787,-150.0,0.00024999,30]
[345606199,1734378662796,-2376.19,0.00024999,4]
[345606201,1734378662806,-2376.19,0.00024999,4]
[345606203,1734378662815,-2376.19,0.00024999,4]
[345606205,1734378662825,-2376.19,0.00024999,4]
[345606207,1734378662837,-2376.19,0.00024999,4]
[345606209,1734378662846,-2376.19,0.00024999,4]
[345606211,1734378662856,-2376.19,0.00024999,4]
[345606213,1734378662865,-2376.19,0.00024999,4]
[345606215,1734378662875,-2376.19,0.00024999,4]
[345606217,1734378662885,-2376.19,0.00024999,4]
[345606219,1734378662895,-2376.19,0.00024999,4]
[345606221,1734378662905,-2376.19,0.00024999,4]
[345606223,1734378662914,-2376.19,0.00024999,4]
[345606225,1734378662926,-2376.19,0.00024999,4]
[345606227,1734378662936,-2376.26292288,0.00024999,4]
[345606229,1734378662946,-500.0,0.00024999,4]
[345606231,1734378662955,-500.0,0.00024999,4]
[345606233,1734378662964,-500.0,0.00024999,4]
[345606234,1734378662974,-500.0,0.00024999,4]
[345606236,1734378662984,-500.0,0.00024999,4]
[345606238,1734378662994,-500.0,0.00024999,4]
[345606240,1734378663007,-500.0,0.00024999,4]
[345606243,1734378663018,-500.0,0.00024999,4]
[345606245,1734378663028,-310.17,0.00024999,4]
[345606246,1734378663037,-500.0,0.00024999,4]
[345606248,1734378663047,-500.0,0.00024999,4]
[345606250,1734378663057,-500.0,0.00024999,4]
[345606252,1734378663067,-500.0,0.00024999,4]
[345606254,1734378663077,-500.0,0.00024999,4]
[345606256,1734378663089,-500.0,0.00024999,4]
[345606258,1734378663099,-500.0,0.00024999,4]
[345606260,1734378663109,-500.0,0.00024999,4]
[345606262,1734378663119,-500.0,0.00024999,4]
[345606264,1734378663129,-500.0,0.00024999,4]
[345606266,1734378663139,-500.0,0.00024999,4]
[345606268,1734378663149,-567.83815355,0.00024999,4]
[345606270,1734378663159,-908.38,0.00024999,2]
[345606272,1734378663170,-150.0,0.00024999,2]
[345606274,1734378663180,-500.0,0.00024999,4]
[345606276,1734378663190,-642.98578373,0.00024999,4]
[345606278,1734378663201,-500.0,0.00024999,4]
[345606280,1734378663211,-500.0,0.00024999,4]
[345606282,1734378663221,-500.0,0.00024999,4]
[345606284,1734378663232,-500.0,0.00024999,4]
[345606287,1734378663243,-500.0,0.00024999,4]
[345606289,1734378663253,-500.0,0.00024999,4]
[345606291,1734378663263,-500.0,0.00024999,4]
[345606293,1734378663273,-500.0,0.00024999,4]
[345606295,1734378663283,-500.0,0.00024999,4]
[345606297,1734378663292,-500.0,0.00024999,4]
[345606299,1734378663302,-500.0,0.00024999,4]
[345606301,1734378663311,-500.0,0.00024999,4]
[345606303,1734378663322,-500.0,0.00024999,4]
[345606304,1734378663333,-564.90220054,0.00024999,4]
[345606306,1734378663343,-577.73274323,0.00024999,4]
[345606309,1734378663353,-500.0,0.00024999,4]
[345606311,1734378663363,-200.5915612,0.00024999,4]
[345606312,1734378663373,-2683.66,0.00024999,4]
[345606314,1734378663383,-2683.66,0.00024999,4]
[345606316,1734378663393,-2683.66,0.00024999,4]
[345606318,1734378663404,-2683.66,0.00024999,4]
[345606329,1734378663414,-2683.66,0.00024999,4]
[345606331,1734378663517,-2683.66,0.00024999,4]
[345606333,1734378663528,-2683.66,0.00024999,4]
[345606335,1734378663538,-2683.66,0.00024999,4]
[345606337,1734378663548,-2683.66,0.00024999,4]
[345606339,1734378663557,-2683.66,0.00024999,4]
[345606341,1734378663567,-2683.66,0.00024999,4]
[345606343,1734378663577,-2683.66,0.00024999,4]
[345606345,1734378663588,-2683.66,0.00024999,4]
[345606347,1734378663598,-2683.66,0.00024999,4]
[345606349,1734378663608,-2683.85711632,0.00024999,4]
[345606351,1734378663618,-500.0,0.00024999,4]
[345606353,1734378663627,-500.0,0.00024999,4]
[345606355,1734378663637,-500.0,0.00024999,4]
[345606357,1734378663646,-500.0,0.00024999,4]
[345606359,1734378663655,-500.0,0.00024999,4]
[345606361,1734378663668,-500.0,0.00024999,4]
[345606363,1734378663678,-500.0,0.00024999,4]
[345606365,1734378663688,-372.05,0.00024999,4]
[345606367,1734378663698,-270.40146212,0.00024999,4]
[345606369,1734378663708,-1564.13,0.00024999,4]
[345606371,1734378663717,-1564.13,0.00024999,4]
[345606373,1734378663727,-1564.13,0.00024999,4]
[345606375,1734378663736,-1564.13,0.00024999,4]
[345606376,1734378663746,-1564.13,0.00024999,4]
[345606377,1734378663755,-1564.13,0.00024999,4]
[345606378,1734378663764,-1564.13,0.00024999,4]
[345606379,1734378663774,-1564.13,0.00024999,4]
[345606380,1734378663783,-1564.13,0.00024999,4]
[345606381,1734378663792,-1564.13,0.00024999,4]
[345606382,1734378663801,-1564.13,0.00024999,4]
[345606383,1734378663812,-1564.13,0.00024999,4]
[345606384,1734378663821,-1564.13,0.00024999,4]
[345606385,1734378663832,-1564.17813256,0.00024999,4]
[345606386,1734378663842,-202.35,0.00024999,4]
[345606387,1734378663852,-936.56,0.00024999,4]
[345606389,1734378663862,-936.56,0.00024999,4]
[345606391,1734378663871,-936.56,0.00024999,4]
[345606393,1734378663881,-936.56,0.00024999,4]
[345606395,1734378663891,-936.56,0.00024999,4]
[345606396,1734378663902,-936.56,0.00024999,4]
[345606399,1734378663912,-936.56,0.00024999,4]
[345606401,1734378663925,-936.56,0.00024999,4]
[345606403,1734378663936,-936.56,0.00024999,4]
[345606404,1734378663947,-936.56,0.00024999,4]
[345606406,1734378663959,-936.56,0.00024999,4]
[345606409,1734378663971,-936.56,0.00024999,4]
[345606411,1734378663981,-936.56,0.00024999,4]
[345606412,1734378663991,-936.56,0.00024999,4]
[345606414,1734378664002,-936.56,0.00024999,4]
[345606416,1734378664012,-936.59900002,0.00024999,4]
[345606418,1734378664023,-500.0,0.00024999,4]
[345606420,1734378664034,-500.0,0.00024999,4]
[345606422,1734378664044,-500.0,0.00024999,4]
[345606425,1734378664054,-500.0,0.00024999,4]
[345606427,1734378664065,-500.0,0.00024999,4]
[345606428,1734378664075,-500.0,0.00024999,4]
[345606430,1734378664087,-500.0,0.00024999,4]
[345606432,1734378664098,-500.0,0.00024999,4]
[345606434,1734378664108,-500.0,0.00024999,4]
[345606436,1734378664118,-187.86931465,0.00024999,4]
[345606438,1734378664128,-500.0,0.00024999,4]
[345606440,1734378664138,-500.0,0.00024999,4]
[345606442,1734378664148,-372.32,0.00024999,4]
[345606444,1734378664158,-2694.59,0.00024999,4]
[345606446,1734378664168,-2694.59,0.00024999,4]
[345606448,1734378664178,-2694.59,0.00024999,4]
[345606450,1734378664188,-2694.59,0.00024999,4]
[345606452,1734378664198,-2694.59,0.00024999,4]
[345606455,1734378664209,-2694.59,0.00024999,4]
[345606457,1734378664219,-2694.59,0.00024999,4]
[345606458,1734378664228,-2694.59,0.00024999,4]
[345606461,1734378664239,-2694.59,0.00024999,4]
[345606462,1734378664249,-2694.59,0.00024999,4]
[345606464,1734378664259,-2694.59,0.00024999,4]
[345606467,1734378664270,-2694.62,0.00024999,4]
[345606469,1734378664280,-154.066656,0.00024999,4]
[345606470,1734378664290,-500.0,0.00024999,4]
[345606472,1734378664300,-761.05,0.00024999,4]
[345606474,1734378664310,-761.05,0.00024999,4]
[345606476,1734378664320,-500.0,0.00024999,4]
[345606478,1734378664331,-761.05,0.00024999,4]
[345606480,1734378664342,-761.05,0.00024999,4]
[345606482,1734378664352,-761.05,0.00024999,4]
[345606484,1734378664362,-500.0,0.00024999,4]
[345606486,1734378664373,-761.05,0.00024999,4]
[345606488,1734378664383,-622.11879631,0.00024999,4]
[345606490,1734378664393,-761.05,0.00024999,4]
[345606493,1734378664403,-152.449149,0.00024999,4]
[345606494,1734378664413,-761.05,0.00024999,4]
[345606496,1734378664422,-152.449149,0.00024999,4]
[345606498,1734378664431,-761.05,0.00024999,4]
[345606500,1734378664440,-152.449149,0.00024999,4]
[345606502,1734378664450,-761.05,0.00024999,4]
[345606504,1734378664459,-152.449149,0.00024999,4]
[345606506,1734378664469,-761.05,0.00024999,4]
[345606508,1734378664478,-152.449149,0.00024999,4]
[345606510,1734378664487,-761.05,0.00024999,4]
[345606512,1734378664497,-761.05,0.00024999,4]
[345606514,1734378664507,-152.449149,0.00024999,4]
[345606516,1734378664516,-761.05,0.00024999,4]
[345606518,1734378664526,-152.449149,0.00024999,4]
[345606520,1734378664536,-158.729548,0.00024999,4]
[345606522,1734378664546,-761.11,0.00024999,4]
[345606524,1734378664555,-152.449149,0.00024999,4]
[345606526,1734378664564,-158.729548,0.00024999,4]
[345606528,1734378664574,-158.729548,0.00024999,4]
[345606530,1734378664587,-773.82,0.00024999,4]
[345606532,1734378664597,-773.82,0.00024999,4]
[345606534,1734378664607,-773.82,0.00024999,4]
[345606536,1734378664617,-773.82,0.00024999,4]
[345606538,1734378664627,-773.82,0.00024999,4]
[345606540,1734378664637,-773.82,0.00024999,4]
[345606542,1734378664648,-773.82,0.00024999,4]
[345606544,1734378664658,-773.82,0.00024999,4]
[345606546,1734378664668,-773.82,0.00024999,4]
[345606548,1734378664677,-773.82,0.00024999,4]
[345606550,1734378664687,-773.82,0.00024999,4]
[345606552,1734378664696,-773.98918173,0.00024999,4]
[345606554,1734378664705,-500.0,0.00024999,4]
[345606556,1734378664715,-403.17692261,0.00024999,4]
[345606558,1734378664725,-500.0,0.00024999,4]
[345606560,1734378664735,-551.05,0.00024999,4]
[345606562,1734378664744,-716.28,0.00024999,4]
[345606564,1734378664753,-716.28,0.00024999,4]
[345606566,1734378664763,-716.28,0.00024999,4]
[345606568,1734378664773,-716.28,0.00024999,4]
[345606570,1734378664782,-716.28,0.00024999,4]
[345606572,1734378664792,-716.28,0.00024999,4]
[345606574,1734378664801,-716.28,0.00024999,4]
[345606576,1734378664811,-716.28,0.00024999,4]
[345606578,1734378664820,-716.28,0.00024999,4]
[345606580,1734378664832,-716.28,0.00024999,4]
[345606582,1734378664842,-716.28,0.00024999,4]
[345606584,1734378664851,-716.28,0.00024999,4]
[345606586,1734378664860,-716.30887392,0.00024999,4]
[345606588,1734378664870,-947.97,0.00024999,4]
[345606590,1734378664880,-947.97,0.00024999,4]
[345606592,1734378664890,-947.97,0.00024999,4]
[345606594,1734378664900,-947.97,0.00024999,4]
[345606596,1734378664910,-947.97,0.00024999,4]
[345606598,1734378664921,-947.97,0.00024999,4]
[345606600,1734378664935,-947.97,0.00024999,4]
[345606602,1734378664945,-947.97,0.00024999,4]
[345606604,1734378664954,-947.97,0.00024999,4]
[345606606,1734378664963,-947.97,0.00024999,4]
[345606608,1734378664974,-947.97,0.00024999,4]
[345606610,1734378664984,-947.97,0.00024999,4]
[345606612,1734378664994,-947.97,0.00024999,4]
[345606614,1734378665005,-947.97,0.00024999,4]
[345606616,1734378665015,-948.14,0.00024999,4]
[345606626,1734378665106,-527.12,0.00024999,4]
[345606628,1734378665115,-527.12,0.00024999,4]
[345606630,1734378665125,-527.12,0.00024999,4]
[345606632,1734378665134,-527.12,0.00024999,4]
[345606634,1734378665144,-527.12,0.00024999,4]
[345606636,1734378665153,-527.12,0.00024999,4]
[345606638,1734378665163,-527.12,0.00024999,4]
[345606640,1734378665173,-1000.0001,0.00024999,2]
[345606642,1734378665183,-527.12,0.00024999,4]
[345606644,1734378665192,-527.12,0.00024999,4]
[345606646,1734378665202,-527.12,0.00024999,4]
[345606647,1734378665211,-527.12,0.00024999,4]
[345606649,1734378665221,-527.23,0.00024999,4]
[345606651,1734378665230,-2942.99,0.00024999,4]
[345606653,1734378665240,-2942.99,0.00024999,4]
[345606655,1734378665250,-2942.99,0.00024999,4]
[345606657,1734378665260,-2942.99,0.00024999,4]
[345606659,1734378665270,-2942.99,0.00024999,4]
[345606661,1734378665279,-2942.99,0.00024999,4]
[345606663,1734378665289,-2942.99,0.00024999,4]
[345606665,1734378665299,-2942.99,0.00024999,4]
[345606667,1734378665308,-2942.99,0.00024999,4]
[345606668,1734378665318,-2942.99,0.00024999,4]
[345606669,1734378665327,-2942.99,0.00024999,4]
[345606670,1734378665338,-2943.03467101,0.00024999,4]
[345606671,1734378665349,-2226.46,0.00024999,4]
[345606672,1734378665358,-2226.46,0.00024999,4]
[345606673,1734378665368,-2226.46,0.00024999,4]
[345606674,1734378665377,-2226.46,0.00024999,4]
[345606675,1734378665387,-2226.46,0.00024999,4]
[345606676,1734378665396,-2226.46,0.00024999,4]
[345606677,1734378665406,-2226.46,0.00024999,4]
[345606679,1734378665415,-2226.46,0.00024999,4]
[345606681,1734378665424,-2226.46,0.00024999,4]
[345606683,1734378665433,-2226.46,0.00024999,4]
[345606685,1734378665443,-2226.46,0.00024999,4]
[345606687,1734378665453,-2226.59,0.00024999,4]
[345606689,1734378665463,-835.01,0.00024999,4]
[345606691,1734378665473,-835.01,0.00024999,4]
[345606693,1734378665482,-835.01,0.00024999,4]
[345606695,1734378665492,-835.01,0.00024999,4]
[345606697,1734378665501,-835.01,0.00024999,4]
[345606699,1734378665510,-835.01,0.00024999,4]
[345606701,1734378665519,-835.01,0.00024999,4]
[345606703,1734378665529,-835.01,0.00024999,4]
[345606705,1734378665539,-835.01,0.00024999,4]
[345606707,1734378665548,-835.01,0.00024999,4]
[345606709,1734378665558,-835.01,0.00024999,4]
[345606711,1734378665567,-835.01,0.00024999,4]
[345606713,1734378665577,-835.01,0.00024999,4]
[345606715,1734378665589,-835.01,0.00024999,4]
[345606717,1734378665599,-835.02417844,0.00024999,4]
[345606719,1734378665608,-1086.98,0.00024999,4]
[345606721,1734378665618,-1086.98,0.00024999,4]
[345606723,1734378665627,-1086.98,0.00024999,4]
[345606725,1734378665637,-1086.98,0.00024999,4]
[345606727,1734378665647,-1086.98,0.00024999,4]
[345606729,1734378665657,-1086.98,0.00024999,4]
[345606731,1734378665666,-1086.98,0.00024999,4]
[345606732,1734378665675,-1086.98,0.00024999,4]
[345606734,1734378665685,-1086.98,0.00024999,4]
[345606736,1734378665695,-1086.98,0.00024999,4]
[345606738,1734378665704,-1086.98,0.00024999,4]
[345606740,1734378665713,-1087.05108028,0.00024999,4]
[345606742,1734378665723,-4201.29,0.00024999,4]
[345606744,1734378665732,-4201.29,0.00024999,4]
[345606746,1734378665741,-4201.29,0.00024999,4]
[345606748,1734378665751,-4201.29,0.00024999,4]
[345606750,1734378665761,-4201.29,0.00024999,4]
[345606752,1734378665771,-4201.29,0.00024999,4]
[345606754,1734378665780,-4201.29,0.00024999,4]
[345606756,1734378665789,-4201.29,0.00024999,4]
[345606758,1734378665799,-4201.29,0.00024999,4]
[345606760,1734378665808,-4201.29,0.00024999,4]
[345606762,1734378665817,-4201.29,0.00024999,4]
[345606764,1734378665827,-4201.4,0.00024999,4]
[345606766,1734378665838,-500.0,0.00024999,4]
[345606768,1734378665847,-374.7145044,0.00024999,4]
[345606770,1734378665857,-686.95,0.00024999,4]
[345606772,1734378665866,-686.95,0.00024999,4]
[345606774,1734378665875,-686.95,0.00024999,4]
[345606776,1734378665884,-686.95,0.00024999,4]
[345606778,1734378665894,-686.95,0.00024999,4]
[345606780,1734378665904,-686.95,0.00024999,4]
[345606782,1734378665914,-686.95,0.00024999,4]
[345606784,1734378665925,-686.95,0.00024999,4]
[345606786,1734378665936,-686.95,0.00024999,4]
[345606788,1734378665944,-686.95,0.00024999,4]
[345606790,1734378665954,-686.95,0.00024999,4]
[345606792,1734378665963,-687.1,0.00024999,4]
[345606793,1734378665974,-10224.46,0.00024999,4]
[345606795,1734378665983,-10224.46,0.00024999,4]
[345606797,1734378665993,-10224.46,0.00024999,4]
[345606799,1734378666005,-10224.46,0.00024999,4]
[345606802,1734378666014,-10224.46,0.00024999,4]
[345606804,1734378666024,-10224.46,0.00024999,4]
[345606806,1734378666033,-10224.46,0.00024999,4]
[345606808,1734378666043,-10224.46,0.00024999,4]
[345606809,1734378666053,-10224.46,0.00024999,4]
[345606811,1734378666061,-10224.46,0.00024999,4]
[345606813,1734378666071,-10224.46,0.00024999,4]
[345606815,1734378666080,-10224.56345974,0.00024999,4]
[345606817,1734378666089,-1000.0,0.00024999,2]
[345606819,1734378666098,-682.78,0.00024999,4]
[345606821,1734378666108,-682.78,0.00024999,4]
[345606823,1734378666117,-682.78,0.00024999,4]
[345606825,1734378666126,-682.78,0.00024999,4]
[345606827,1734378666136,-682.78,0.00024999,4]
[345606829,1734378666146,-682.78,0.00024999,4]
[345606831,1734378666155,-682.78,0.00024999,4]
[345606833,1734378666165,-682.78,0.00024999,4]
[345606835,1734378666175,-682.78,0.00024999,4]
[345606837,1734378666185,-682.78,0.00024999,4]
[345606839,1734378666195,-682.78,0.00024999,4]
[345606841,1734378666205,-682.78,0.00024999,4]
[345606843,1734378666215,-682.78,0.00024999,4]
[345606845,1734378666225,-682.78,0.00024999,4]
[345606847,1734378666234,-682.9594,0.00024999,4]
[345606849,1734378666244,-2771092.78212331,0.00025,4]
[345606851,1734378666254,-69369.76329642,0.00025,2]
[345606853,1734378666264,-3111.8099318,0.00025,2]
[345606855,1734378666273,-20241323.13242707,0.00025,2]
[345606857,1734378666283,-3191.82637932,0.00025,60]
[345606859,1734378666292,-150.0,0.00025,2]
[345606861,1734378666301,-205.0,0.00025,2]
[345606863,1734378666311,-500.0,0.00025,2]
[345606865,1734378666320,-7500.0,0.00025,7]
[345606867,1734378666330,-54000.0,0.00025,2]
[345606869,1734378666340,-152.336,0.00025,2]
[345606871,1734378666350,-150.0,0.00025,2]
[345606873,1734378666360,-150.0,0.00025,2]
[345606875,1734378666370,-153.246,0.00025,2]
[345606877,1734378666380,-251.0,0.00025,2]
[345606879,1734378666389,-150.0,0.00025,2]
[345606881,1734378666398,-150.0,0.00025,2]
[345606883,1734378666408,-246.575,0.00025,2]
[345606885,1734378666417,-247.0,0.00025,2]
[345606887,1734378666426,-150.661,0.00025,2]
[345606889,1734378666435,-153.732,0.00025,2]
[345606899,1734378666445,-2000.0,0.00025,2]
[345606901,1734378666534,-42177.07,0.00025,120]
[345606903,1734378666544,-250.0,0.00025,2]
[345606905,1734378666553,-323.0,0.00025,13]
[345606907,1734378666563,-250.0,0.00025,2]
[345606909,1734378666573,-47330.45863874,0.00025,2]
[345606911,1734378666584,-10194481.84551932,0.00025,2]
[345606932,1734378666878,-36108.9073469,0.00025,2]
[345606935,1734378666890,-493086.8689822,0.00025,2]
[345606937,1734378666901,-5284.02656,0.00025,2]
[345606941,1734378666936,-656.21,0.00024957,4]
[345606943,1734378666945,-656.21,0.00024993,4]
[345606945,1734378666955,-656.21,0.00024994,4]
[345606947,1734378666966,-1415.68343711,0.00025,2]
[345606949,1734378666977,-1607.23079027,0.00025,2]
[345606951,1734378666989,-48006.01401047,0.00025,2]
[345606954,1734378667005,-656.21,0.00024998,4]
[345606956,1734378667015,-1775.79047593,0.00025,2]
[345606971,1734378667161,-500.533146,0.00024,2]
[345606973,1734378667171,-306.496846,0.00024998,4]
[345606976,1734378667186,-349.713154,0.00024998,4]
[345606978,1734378667198,-656.21,0.00024999,4]
[345606980,1734378667207,-656.21,0.00024999,4]
[345606981,1734378667217,-656.21,0.00024999,4]
[345606983,1734378667226,-158.30968487,0.00024999,4]
[345606987,1734378667254,-497.90031513,0.00024999,4]
[345606989,1734378667264,-656.21,0.00024999,4]
[345606991,1734378667274,-656.21,0.00024999,4]
[345606993,1734378667283,-656.21,0.00024999,4]
[345606995,1734378667292,-656.21,0.00024999,4]
[345606997,1734378667301,-656.21,0.00024999,4]
[345606999,1734378667311,-102336.04968487,0.00025,2]
[345607024,1734378667545,-1649.44,0.00024305,2]
[345607026,1734378667555,-656.21,0.00024999,4]
[345607027,1734378667564,-656.21,0.00024999,4]
[345607029,1734378667573,-656.33,0.00024999,4]
[345607031,1734378667586,-1755.2621312,0.00025,2]
[345607034,1734378667598,-175640.47949785,0.00025,2]
[345607036,1734378667611,-25233.43234631,0.00025,2]
[345607039,1734378667626,-2461.90002,0.00025,2]
[345608785,1734379030174,-292.2792939,0.0001991,2]
[345608786,1734379030200,-1707.7207061,0.0002,2]
[345608787,1734379459984,159.12,0.00010137,2]
[345608789,1734379758139,-174.38,0.00018163,2]
[345608790,1734379758160,-284.38951938,0.000199,2]
[345608791,1734379758182,-292.2792939,0.0002,2]
[345608792,1734379758203,-1099.0,0.0002,3]
[345608793,1734379758224,-1098.0,0.0002,3]
[345608794,1734379758250,-1001.19869872,0.0002,3]
[345608803,1734379832018,-96.80130128,0.0002,3]
[345608804,1734379832028,-845.5819699,0.0002,3]
[345608805,1734379832040,-252.4180301,0.0002,3]
[345608806,1734379832049,-531.7872499,0.0002001,2]
[345608807,1734379832178,-1468.2127501,0.0002001,2]
[345608808,1734379832189,-3098.699408,0.0002002,2]
[345608809,1734379832198,-10000.0,0.00021,2]
[345608810,1734379832208,-480.35868664,0.00021164,2]
[345608811,1734379832283,-19.64131336,0.00021164,2]
[345608812,1734379832292,-359.72112049,0.00021164,2]
[345608813,1734379832303,-150.37,0.00021164,2]
[345608814,1734379832313,-289.17847547,0.00021726,2]
[345608815,1734379832325,-207.82152453,0.00021726,2]
[345608816,1734379832334,-150.0,0.00022181,2]
[345608817,1734379832344,-204.81,0.00022196,2]
[345608818,1734379832355,-7.36847547,0.00022206,2]